fUSD/lending_fUSD_20260624
["ID","MTS","AMOUNT","RATE_DAILY","PERIOD"]
[426294496,1782251444000,-785.0,0.00020606,2]
[426294491,1782251444000,-892.47314182,0.000206,2]
[426294497,1782251444000,-151.0,0.00020679,2]
[426294493,1782251444000,-341.30788097,0.000206,2]
[426294492,1782251444000,-323.99722375,0.000206,2]
[426294494,1782251444000,-10203.95536531,0.000206,2]
[426294440,1782251444000,-10000.0,0.000199,2]
[426294482,1782251444000,-1019.1,0.00020381,2]
[426294471,1782251444000,-596.81222315,0.00020121,2]
[426294495,1782251444000,-313.0,0.00020606,2]
[426294468,1782251444000,-431.0,0.0002,2]
[426294477,1782251444000,-341.30788097,0.000202,2]
[426294439,1782251444000,-10203.95536531,0.000198,2]
[426294438,1782251444000,-3456.18620869,0.000197,2]
[426294452,1782251444000,-225.0,0.0002,2]
[426294446,1782251444000,-323.99722375,0.0002,2]
[426294443,1782251444000,-486.0,0.0002,2]
[426294447,1782251444000,-341.30788097,0.0002,2]
[426294445,1782251444000,-892.47314182,0.0002,2]
[426294449,1782251444000,-1207.0,0.0002,2]
[426294453,1782251444000,-400.0,0.0002,2]
[426294450,1782251444000,-1778.0,0.0002,2]
[426294444,1782251444000,-156.0,0.0002,2]
[426294451,1782251444000,-230.0,0.0002,2]
[426294448,1782251444000,-10203.95536531,0.0002,2]
[426294456,1782251444000,-288.67407521,0.0002,2]
[426294457,1782251444000,-386.0,0.0002,2]
[426294469,1782251444000,-502.29000069,0.00020057,2]
[426294464,1782251444000,-730.0,0.0002,2]
[426294460,1782251444000,-15880.22,0.0002,2]
[426294462,1782251444000,-40597.0,0.0002,2]
[426294463,1782251444000,-154.0,0.0002,2]
[426294459,1782251444000,-24466.07,0.0002,2]
[426294455,1782251444000,-355.0,0.0002,2]
[426294461,1782251444000,-1745.0,0.0002,2]
[426294458,1782251444000,-201.23757348,0.0002,2]
[426294466,1782251444000,-1030.9,0.0002,7]
[426294465,1782251444000,-183.0,0.0002,2]
[426294454,1782251444000,-936.0,0.0002,2]
[426294535,1782251445000,-178.27,0.00021227,2]
[426294524,1782251445000,-431.0,0.00021,2]
[426294532,1782251445000,-1281.59,0.00021227,2]
[426294534,1782251445000,-1149.59,0.00021227,2]
[426294530,1782251445000,-642.25,0.00021227,2]
[426294529,1782251445000,-2080.17592889,0.00021227,2]
[426294527,1782251445000,-151.0,0.00021227,2]
[426294531,1782251445000,-1112.75,0.00021227,2]
[426294533,1782251445000,-576.52,0.00021227,2]
[426294526,1782251445000,-650.76923763,0.000212,2]
[426294528,1782251445000,-200.0,0.00021227,2]
[426294540,1782251445000,-5481.96,0.0002137,2]
[426294545,1782251445000,-1229.0,0.00021461,2]
[426294546,1782251445000,-6083.0,0.00021461,2]
[426294541,1782251445000,-650.76923763,0.000214,2]
[426294538,1782251445000,-10203.95536531,0.000213,2]
[426294543,1782251445000,-1361.0,0.00021461,2]
[426294539,1782251445000,-958.79318415,0.00021348,2]
[426294537,1782251445000,-420.67,0.00021273,2]
[426294542,1782251445000,-3562.0,0.00021461,2]
[426294547,1782251445000,-935.0,0.00021461,2]
[426294525,1782251445000,-500.0,0.00021171,2]
[426294536,1782251445000,-785.0,0.00021271,2]
[426294544,1782251445000,-1277.0,0.00021461,2]
[426294522,1782251445000,-730.0,0.00021,2]
[426294512,1782251445000,-650.76923763,0.00021,2]
[426294521,1782251445000,-154.0,0.00021,2]
[426294559,1782251445000,-500.0,0.00021716,2]
[426294501,1782251445000,-323.99722375,0.000208,2]
[426294502,1782251445000,-341.30788097,0.000208,2]
[426294500,1782251445000,-892.47314182,0.000208,2]
[426294498,1782251445000,-200.0,0.00020679,2]
[426294499,1782251445000,-2005.9555727,0.00020679,2]
[426294513,1782251445000,-1207.0,0.00021,2]
[426294509,1782251445000,-486.0,0.00021,2]
[426294506,1782251445000,-150.49757157,0.000209,2]
[426294504,1782251445000,-5529.0,0.000208,5]
[426294508,1782251445000,-502.29000069,0.00020979,2]
[426294503,1782251445000,-10203.95536531,0.000208,2]
[426294511,1782251445000,-10203.95536531,0.00021,2]
[426294510,1782251445000,-166.0,0.00021,2]
[426294505,1782251445000,-8965.79067308,0.00020809,2]
[426294507,1782251445000,-785.0,0.00020939,2]
[426294516,1782251445000,-225.0,0.00021,2]
[426294514,1782251445000,-1778.0,0.00021,2]
[426294515,1782251445000,-230.0,0.00021,2]
[426294517,1782251445000,-936.0,0.00021,2]
[426294520,1782251445000,-1745.0,0.00021,2]
[426294519,1782251445000,-386.0,0.00021,2]
[426294523,1782251445000,-183.0,0.00021,2]
[426294518,1782251445000,-355.0,0.00021,2]
[426294549,1782251445000,-195.20438385,0.00021535,3]
[426294550,1782251445000,-217.8065758,0.00021535,3]
[426294555,1782251445000,-5771.53512819,0.00021667,2]
[426294580,1782251445000,-172.60219192,0.00021965,3]
[426294578,1782251445000,-250.0,0.00021918,12]
[426294579,1782251445000,-785.0,0.00021936,2]
[426294583,1782251445000,-1778.0,0.00022,2]
[426294582,1782251445000,-1207.0,0.00022,2]
[426294588,1782251445000,-355.0,0.00022,2]
[426294585,1782251445000,-225.0,0.00022,2]
[426294589,1782251445000,-386.0,0.00022,2]
[426294587,1782251445000,-936.0,0.00022,2]
[426294586,1782251445000,-450.0,0.00022,2]
[426294590,1782251445000,-1745.0,0.00022,2]
[426294581,1782251445000,-486.0,0.00022,2]
[426294591,1782251445000,-154.0,0.00022,2]
[426294597,1782251445000,-10203.95536531,0.000221,2]
[426294593,1782251445000,-183.0,0.00022,2]
[426294592,1782251445000,-730.0,0.00022,2]
[426294596,1782251445000,-2214.22,0.00022,2]
[426294594,1782251445000,-2175.0,0.00022,2]
[426294600,1782251445000,-151.0,0.00022323,2]
[426294599,1782251445000,-10203.95536531,0.000223,2]
[426294601,1782251445000,-200.0,0.00022323,2]
[426294553,1782251445000,-8169.18,0.00021607,2]
[426294604,1782251445000,-150.0,0.00022333,2]
[426294606,1782251445000,-1019.1,0.00022353,2]
[426294598,1782251445000,-785.0,0.00022268,2]
[426294573,1782251445000,-10203.95536531,0.000219,2]
[426294602,1782251445000,-2236.95670847,0.00022323,2]
[426294584,1782251445000,-230.0,0.00022,2]
[426294577,1782251445000,-207.31,0.00021918,2]
[426294551,1782251445000,-650.76923763,0.000216,2]
[426294554,1782251445000,-2000.0,0.00021664,2]
[426294552,1782251445000,-785.0,0.00021603,2]
[426294548,1782251445000,-10203.95536531,0.000215,2]
[426294558,1782251445000,-500.0,0.00021716,2]
[426294556,1782251445000,-10203.95536531,0.000217,2]
[426294563,1782251445000,-200.0,0.00021775,2]
[426294562,1782251445000,-151.0,0.00021775,2]
[426294560,1782251445000,-500.0,0.00021716,2]
[426294565,1782251445000,-500.0,0.00021806,2]
[426294557,1782251445000,-500.0,0.00021716,2]
[426294564,1782251445000,-2157.14243826,0.00021775,2]
[426294567,1782251445000,-892.7,0.0002185,2]
[426294569,1782251445000,-1079.37,0.00021864,2]
[426294566,1782251445000,-2000.0,0.0002185,2]
[426294570,1782251445000,-1243.14,0.00021864,2]
[426294571,1782251445000,-559.22,0.00021864,2]
[426294561,1782251445000,-420.00479648,0.00021716,2]
[426294568,1782251445000,-622.98,0.00021864,2]
[426294574,1782251445000,-650.76923763,0.000219,2]
[426294576,1782251445000,-5000.0,0.00021918,2]
[426294575,1782251445000,-502.32470687,0.00021902,2]
[426294572,1782251445000,-1115.1,0.00021864,2]
[426294647,1782251446000,-50000.0,0.00023,7]
[426294643,1782251446000,-225.0,0.00023,2]
[426294640,1782251446000,-1207.0,0.00023,2]
[426294638,1782251446000,-486.0,0.00023,2]
[426294639,1782251446000,-10203.95536531,0.00023,2]
[426294637,1782251446000,-785.0,0.00022933,2]
[426294648,1782251446000,-50000.0,0.00023,5]
[426294634,1782251446000,-151.0,0.00022871,2]
[426294641,1782251446000,-1778.0,0.00023,2]
[426294645,1782251446000,-50000.0,0.00023,7]
[426294658,1782251446000,-1745.0,0.00023,2]
[426294644,1782251446000,-936.0,0.00023,2]
[426294646,1782251446000,-50000.0,0.00023,5]
[426294655,1782251446000,-355.0,0.00023,2]
[426294653,1782251446000,-50000.0,0.00023,7]
[426294652,1782251446000,-50000.0,0.00023,5]
[426294651,1782251446000,-50000.0,0.00023,7]
[426294649,1782251446000,-50000.0,0.00023,7]
[426294650,1782251446000,-50000.0,0.00023,5]
[426294631,1782251446000,-5771.53512819,0.00022789,2]
[426294654,1782251446000,-8224.43,0.00023,5]
[426294642,1782251446000,-230.0,0.00023,2]
[426294632,1782251446000,-10203.95536531,0.000228,2]
[426294621,1782251446000,-182.26888893,0.00022538,14]
[426294627,1782251446000,-172.08,0.00022603,2]
[426294659,1782251446000,-154.0,0.00023,2]
[426294611,1782251446000,-500.0,0.0002246,2]
[426294610,1782251446000,-184.46,0.0002236,2]
[426294613,1782251446000,-556.03,0.00022466,2]
[426294612,1782251446000,-370.7,0.00022466,2]
[426294614,1782251446000,-2192.88,0.00022466,2]
[426294616,1782251446000,-603.71,0.00022501,7]
[426294615,1782251446000,-499.69,0.00022466,2]
[426294617,1782251446000,-1045.99,0.00022501,7]
[426294619,1782251446000,-541.93,0.00022501,7]
[426294636,1782251446000,-2319.72410669,0.00022871,2]
[426294618,1782251446000,-1204.7,0.00022501,7]
[426294622,1782251446000,-150.0,0.0002254,2]
[426294624,1782251446000,-551.07975972,0.00022596,2]
[426294625,1782251446000,-10203.95536531,0.000226,2]
[426294623,1782251446000,-8965.79067308,0.00022582,2]
[426294626,1782251446000,-785.0,0.000226,2]
[426294628,1782251446000,-209.98865178,0.00022603,2]
[426294629,1782251446000,-150.0,0.00022603,2]
[426294635,1782251446000,-200.0,0.00022871,2]
[426294630,1782251446000,-403.22,0.000227,14]
[426294633,1782251446000,-500.0,0.0002287,2]
[426294620,1782251446000,-1080.61,0.00022501,7]
[426294656,1782251446000,-1538.77,0.00023,7]
[426294657,1782251446000,-386.0,0.00023,2]
[426294661,1782251446000,-183.0,0.00023,2]
[426294689,1782251446000,-486.0,0.00024,2]
[426294693,1782251446000,-230.0,0.00024,2]
[426294690,1782251446000,-10203.95536531,0.00024,2]
[426294692,1782251446000,-1778.0,0.00024,2]
[426294691,1782251446000,-1207.0,0.00024,2]
[426294694,1782251446000,-225.0,0.00024,2]
[426294702,1782251446000,-166.94882961,0.00024,2]
[426294705,1782251446000,-545.08,0.00024,2]
[426294696,1782251446000,-500.0,0.00024,2]
[426294700,1782251446000,-386.0,0.00024,2]
[426294688,1782251446000,-2494.55939288,0.00023967,2]
[426294704,1782251446000,-183.0,0.00024,2]
[426294699,1782251446000,-355.0,0.00024,2]
[426294701,1782251446000,-1745.0,0.00024,2]
[426294697,1782251446000,-936.0,0.00024,2]
[426294706,1782251446000,-437.23,0.0002411,2]
[426294703,1782251446000,-730.0,0.00024,2]
[426294708,1782251446000,-50753.68,0.00024174,2]
[426294707,1782251446000,-1022.25,0.00024174,2]
[426294709,1782251446000,-2951.45,0.00024174,2]
[426294710,1782251446000,-500.0,0.00024192,2]
[426294660,1782251446000,-730.0,0.00023,2]
[426294695,1782251446000,-50000.0,0.00024,5]
[426294687,1782251446000,-200.0,0.00023967,2]
[426294698,1782251446000,-50000.0,0.00024,5]
[426294685,1782251446000,-785.0,0.0002393,2]
[426294686,1782251446000,-151.0,0.00023967,2]
[426294665,1782251446000,-1113.58255414,0.00023189,2]
[426294663,1782251446000,-151.44105201,0.0002306,2]
[426294664,1782251446000,-500.0,0.00023134,2]
[426294668,1782251446000,-150.0,0.0002326,21]
[426294667,1782251446000,-8169.18,0.00023213,7]
[426294669,1782251446000,-785.0,0.00023265,2]
[426294671,1782251446000,-1012.61,0.0002335,7]
[426294666,1782251446000,-10203.95536531,0.000232,2]
[426294670,1782251446000,-250.0,0.00023288,14]
[426294678,1782251446000,-785.0,0.00023598,2]
[426294682,1782251446000,-500.0,0.00023828,2]
[426294662,1782251446000,-2175.0,0.00023,2]
[426294680,1782251446000,-958.79318415,0.00023699,2]
[426294676,1782251446000,-2405.55389863,0.00023419,2]
[426294677,1782251446000,-10203.95536531,0.000235,2]
[426294683,1782251446000,-551.07975972,0.00023836,2]
[426294672,1782251446000,-1046.13,0.0002335,7]
[426294681,1782251446000,-10203.95536531,0.000237,2]
[426294675,1782251446000,-200.0,0.00023419,2]
[426294684,1782251446000,-5771.53512819,0.00023911,2]
[426294673,1782251446000,-206.0,0.00023354,2]
[426294674,1782251446000,-151.0,0.00023419,2]
[426294679,1782251446000,-150.0,0.00023667,2]
[426294751,1782251447000,-207.31,0.00024658,8]
[426294744,1782251447000,-2214.22,0.00024612,7]
[426294749,1782251447000,-1000.0,0.00024657,2]
[426294748,1782251447000,-1000.0,0.00024657,2]
[426294745,1782251447000,-1000.0,0.00024657,2]
[426294742,1782251447000,-2586.85809042,0.00024515,2]
[426294743,1782251447000,-500.0,0.00024542,2]
[426294746,1782251447000,-1000.0,0.00024657,2]
[426294747,1782251447000,-1000.0,0.00024657,2]
[426294741,1782251447000,-200.0,0.00024515,2]
[426294752,1782251447000,-250.0,0.00024658,16]
[426294750,1782251447000,-1000.0,0.00024657,2]
[426294763,1782251447000,-150.0,0.00024658,2]
[426294754,1782251447000,-500.0,0.00024658,2]
[426294762,1782251447000,-150.0,0.00024658,2]
[426294757,1782251447000,-500.0,0.00024658,2]
[426294755,1782251447000,-500.0,0.00024658,2]
[426294740,1782251447000,-151.0,0.00024515,2]
[426294759,1782251447000,-168.70889252,0.00024658,2]
[426294761,1782251447000,-150.0,0.00024658,2]
[426294758,1782251447000,-500.0,0.00024658,2]
[426294756,1782251447000,-500.0,0.00024658,2]
[426294760,1782251447000,-150.0,0.00024658,2]
[426294771,1782251447000,-150.0,0.00024658,2]
[426294768,1782251447000,-150.0,0.00024658,2]
[426294753,1782251447000,-1000.0,0.00024658,2]
[426294738,1782251447000,-935.0,0.00024461,2]
[426294714,1782251447000,-1019.1,0.00024324,2]
[426294736,1782251447000,-1229.0,0.00024461,2]
[426294718,1782251447000,-500.0,0.00024384,2]
[426294711,1782251447000,-10203.95536531,0.000242,2]
[426294712,1782251447000,-598.74878545,0.000243,2]
[426294775,1782251447000,-150.0,0.00024658,2]
[426294717,1782251447000,-500.0,0.00024384,2]
[426294715,1782251447000,-8965.79067308,0.00024354,2]
[426294713,1782251447000,-1538.77,0.000243,7]
[426294716,1782251447000,-187.30590878,0.00024379,2]
[426294719,1782251447000,-500.0,0.00024384,2]
[426294722,1782251447000,-500.0,0.00024384,2]
[426294727,1782251447000,-500.0,0.00024384,2]
[426294729,1782251447000,-500.0,0.00024384,2]
[426294737,1782251447000,-6083.0,0.00024461,2]
[426294724,1782251447000,-500.0,0.00024384,2]
[426294725,1782251447000,-500.0,0.00024384,2]
[426294721,1782251447000,-500.0,0.00024384,2]
[426294728,1782251447000,-500.0,0.00024384,2]
[426294720,1782251447000,-500.0,0.00024384,2]
[426294723,1782251447000,-500.0,0.00024384,2]
[426294731,1782251447000,-10203.95536531,0.000244,2]
[426294730,1782251447000,-172.17031151,0.00024384,2]
[426294732,1782251447000,-285.0,0.00024421,2]
[426294735,1782251447000,-1277.0,0.00024461,2]
[426294733,1782251447000,-3562.0,0.00024461,2]
[426294739,1782251447000,-408.54758177,0.0002447,2]
[426294734,1782251447000,-1361.0,0.00024461,2]
[426294726,1782251447000,-289.69334634,0.00024384,2]
[426294767,1782251447000,-150.0,0.00024658,2]
[426294764,1782251447000,-150.0,0.00024658,2]
[426294769,1782251447000,-150.0,0.00024658,2]
[426294800,1782251447000,-10203.95536531,0.000249,2]
[426294807,1782251447000,-949.7031038,0.00025,2]
[426294803,1782251447000,-1787.0,0.00025,2]
[426294802,1782251447000,-1213.0,0.00025,2]
[426294805,1782251447000,-243.21789281,0.00025,2]
[426294801,1782251447000,-489.97807811,0.00025,2]
[426294804,1782251447000,-238.00524167,0.00025,2]
[426294808,1782251447000,-50000.0,0.00025,7]
[426294809,1782251447000,-368.47364359,0.00025,2]
[426294806,1782251447000,-50000.0,0.00025,7]
[426294811,1782251447000,-398.00412977,0.00025,2]
[426294812,1782251447000,-1756.06220337,0.00025,2]
[426294810,1782251447000,-1538.77,0.00025,7]
[426294817,1782251447000,-421.36,0.00025,2]
[426294819,1782251447000,-421.36,0.00025,2]
[426294816,1782251447000,-421.36,0.00025,2]
[426294813,1782251447000,-738.44932809,0.00025,2]
[426294820,1782251447000,-421.36,0.00025,2]
[426294815,1782251447000,-174.0,0.00025,7]
[426294814,1782251447000,-187.0,0.00025,2]
[426294818,1782251447000,-421.36,0.00025,2]
[426294822,1782251447000,-421.36,0.00025,2]
[426294824,1782251447000,-5771.53512819,0.00025033,2]
[426294826,1782251447000,-200.0,0.00025063,2]
[426294825,1782251447000,-151.0,0.00025063,2]
[426294766,1782251447000,-150.0,0.00024658,2]
[426294821,1782251447000,-421.36,0.00025,2]
[426294799,1782251447000,-150.0,0.0002485,2]
[426294823,1782251447000,-421.36,0.00025,2]
[426294797,1782251447000,-5260.63529455,0.00024781,7]
[426294791,1782251447000,-150.0,0.00024658,2]
[426294774,1782251447000,-150.0,0.00024658,2]
[426294772,1782251447000,-150.0,0.00024658,2]
[426294770,1782251447000,-150.0,0.00024658,2]
[426294765,1782251447000,-150.0,0.00024658,2]
[426294778,1782251447000,-150.0,0.00024658,2]
[426294781,1782251447000,-150.0,0.00024658,2]
[426294787,1782251447000,-150.0,0.00024658,2]
[426294777,1782251447000,-150.0,0.00024658,2]
[426294783,1782251447000,-150.0,0.00024658,2]
[426294779,1782251447000,-150.0,0.00024658,2]
[426294776,1782251447000,-150.0,0.00024658,2]
[426294782,1782251447000,-150.0,0.00024658,2]
[426294773,1782251447000,-150.0,0.00024658,2]
[426294785,1782251447000,-150.0,0.00024658,2]
[426294784,1782251447000,-150.0,0.00024658,2]
[426294790,1782251447000,-150.0,0.00024658,2]
[426294789,1782251447000,-150.0,0.00024658,2]
[426294792,1782251447000,-150.0,0.00024658,2]
[426294795,1782251447000,-150.0,0.000247,2]
[426294796,1782251447000,-37721.26356545,0.00024781,7]
[426294798,1782251447000,-8169.18,0.0002482,7]
[426294793,1782251447000,-153.95356175,0.00024658,2]
[426294794,1782251447000,-10203.95536531,0.000247,2]
[426294780,1782251447000,-150.0,0.00024658,2]
[426294786,1782251447000,-150.0,0.00024658,2]
[426294788,1782251447000,-150.0,0.00024658,2]
[426294867,1782251448000,-200.73679773,0.00025406,2]
[426294863,1782251448000,-172.49162341,0.00025406,2]
[426294869,1782251448000,-178.63959069,0.00025406,2]
[426294853,1782251448000,-197.51629955,0.00025388,2]
[426294865,1782251448000,-173.94508831,0.00025406,2]
[426294864,1782251448000,-171.55414176,0.00025406,2]
[426294861,1782251448000,-10203.95536531,0.000254,2]
[426294859,1782251448000,-199.99541127,0.00025399,2]
[426294856,1782251448000,-195.86385338,0.00025398,2]
[426294870,1782251448000,-178.95242631,0.00025406,2]
[426294862,1782251448000,-161.87006066,0.00025406,2]
[426294860,1782251448000,-692.46006228,0.00025399,2]
[426294871,1782251448000,-302.5943414,0.00025406,2]
[426294868,1782251448000,-199.32849894,0.00025406,2]
[426294872,1782251448000,-335.50390261,0.00025406,2]
[426294882,1782251448000,-200.0,0.00025611,2]
[426294874,1782251448000,-160.50919451,0.00025406,2]
[426294873,1782251448000,-222.02953704,0.00025406,2]
[426294877,1782251448000,-153.19464192,0.00025406,2]
[426294879,1782251448000,-394.0,0.00025536,2]
[426294875,1782251448000,-286.84617592,0.00025406,2]
[426294881,1782251448000,-151.0,0.00025611,2]
[426294878,1782251448000,-207.566894,0.00025477,30]
[426294880,1782251448000,-207.566892,0.00025577,30]
[426294851,1782251448000,-218.35596824,0.00025388,2]
[426294866,1782251448000,-160.48992047,0.00025406,2]
[426294855,1782251448000,-196.91694613,0.00025388,2]
[426294883,1782251448000,-2781.82699784,0.00025611,2]
[426294858,1782251448000,-168.50398799,0.00025398,2]
[426294834,1782251448000,-166.05789483,0.00025388,2]
[426294833,1782251448000,-207.566894,0.00025377,30]
[426294835,1782251448000,-156.49464905,0.00025388,2]
[426294830,1782251448000,-207.566894,0.00025277,30]
[426294827,1782251448000,-2682.57183977,0.00025063,2]
[426294831,1782251448000,-276.755859,0.00025277,30]
[426294828,1782251448000,-551.07975972,0.00025076,2]
[426294829,1782251448000,-10203.95536531,0.000252,2]
[426294832,1782251448000,-499.83315559,0.00025279,2]
[426294836,1782251448000,-155.57202973,0.00025388,2]
[426294838,1782251448000,-154.50054738,0.00025388,2]
[426294837,1782251448000,-165.41826738,0.00025388,2]
[426294854,1782251448000,-169.92620559,0.00025388,2]
[426294839,1782251448000,-155.8561153,0.00025388,2]
[426294845,1782251448000,-205.8336936,0.00025388,2]
[426294840,1782251448000,-186.01218282,0.00025388,2]
[426294846,1782251448000,-215.08965049,0.00025388,2]
[426294842,1782251448000,-203.84486829,0.00025388,2]
[426294847,1782251448000,-163.77142192,0.00025388,2]
[426294844,1782251448000,-179.07342584,0.00025388,2]
[426294843,1782251448000,-150.40697644,0.00025388,2]
[426294849,1782251448000,-191.88953814,0.00025388,2]
[426294848,1782251448000,-199.99953643,0.00025388,2]
[426294850,1782251448000,-192.51441698,0.00025388,2]
[426294852,1782251448000,-194.73596646,0.00025388,2]
[426294857,1782251448000,-178.546956,0.00025398,2]
[426294841,1782251448000,-154.21578407,0.00025388,2]
[426294889,1782251448000,-1538.77,0.000258,7]
[426294876,1782251448000,-172.8785797,0.00025406,2]
[426294887,1782251448000,-2951.45,0.00025786,2]
[426294909,1782251448000,-150.0,0.00026371,5]
[426294918,1782251448000,-152.5836371,0.00026659,2]
[426294919,1782251448000,-330.83653477,0.00026659,2]
[426294920,1782251448000,-242.02757478,0.00026659,2]
[426294921,1782251448000,-309.00109476,0.00026659,2]
[426294929,1782251448000,-430.17930097,0.00026659,2]
[426294928,1782251448000,-411.66738721,0.00026659,2]
[426294922,1782251448000,-311.7122306,0.00026659,2]
[426294925,1782251448000,-407.68973658,0.00026659,2]
[426294924,1782251448000,-308.43156813,0.00026659,2]
[426294927,1782251448000,-358.14685167,0.00026659,2]
[426294926,1782251448000,-300.81395289,0.00026659,2]
[426294917,1782251448000,-311.14405945,0.00026659,2]
[426294923,1782251448000,-372.02436565,0.00026659,2]
[426294935,1782251448000,-385.02883396,0.00026659,2]
[426294936,1782251448000,-436.71193648,0.00026659,2]
[426294930,1782251448000,-236.59725527,0.00026659,2]
[426294931,1782251448000,-327.54284383,0.00026659,2]
[426294932,1782251448000,-399.99907287,0.00026659,2]
[426294933,1782251448000,-152.63920562,0.00026659,2]
[426294934,1782251448000,-383.77907627,0.00026659,2]
[426294941,1782251448000,-393.83389227,0.00026659,2]
[426294939,1782251448000,-395.0325991,0.00026659,2]
[426294940,1782251448000,-339.85241118,0.00026659,2]
[426294938,1782251448000,-389.47193293,0.00026659,2]
[426294943,1782251448000,-15239.35068509,0.00026667,2]
[426294937,1782251448000,-210.89490108,0.00026659,2]
[426294916,1782251448000,-312.98929811,0.00026659,2]
[426294886,1782251448000,-50753.68,0.00025786,2]
[426294908,1782251448000,-295.509669,0.00026371,2]
[426294915,1782251448000,-332.11578966,0.00026659,2]
[426294942,1782251448000,-247.99298746,0.00026659,2]
[426294888,1782251448000,-514.0,0.00025792,2]
[426294890,1782251448000,-200.0,0.00025904,2]
[426294891,1782251448000,-15239.35068509,0.00026,2]
[426294893,1782251448000,-545.08,0.00026,2]
[426294894,1782251448000,-312.31,0.00026027,7]
[426294892,1782251448000,-550.0,0.00026,2]
[426294885,1782251448000,-1022.25,0.00025786,2]
[426294895,1782251448000,-250.0,0.00026027,18]
[426294897,1782251448000,-958.79318415,0.00026049,2]
[426294899,1782251448000,-8965.79067308,0.00026127,2]
[426294907,1782251448000,-495.325645,0.00026362,2]
[426294884,1782251448000,-420.67,0.00025786,2]
[426294898,1782251448000,-150.0,0.00026093,2]
[426294911,1782251448000,-8169.18,0.00026426,7]
[426294914,1782251448000,-339.295611,0.000265,2]
[426294912,1782251448000,-161.92,0.00026428,2]
[426294913,1782251448000,-15239.35068509,0.00026444,2]
[426294896,1782251448000,-179.46,0.00026035,2]
[426294903,1782251448000,-2884.75459676,0.00026159,2]
[426294910,1782251448000,-476.883676,0.00026376,2]
[426294902,1782251448000,-200.0,0.00026159,2]
[426294906,1782251448000,-551.07975972,0.00026316,2]
[426294905,1782251448000,-1019.1,0.00026296,2]
[426294901,1782251448000,-189.79909338,0.00026159,2]
[426294900,1782251448000,-5771.53512819,0.00026156,2]
[426294904,1782251448000,-15239.35068509,0.00026222,2]
[426294989,1782251449000,-209.58,0.00027,7]
[426294985,1782251449000,-500.0,0.00027,7]
[426294981,1782251449000,-62629.9239144,0.00026861,2]
[426294982,1782251449000,-7694.0185728,0.00026861,2]
[426294971,1782251449000,-345.7571594,0.00026677,2]
[426294974,1782251449000,-1538.77,0.000267,7]
[426294973,1782251449000,-306.38928385,0.00026677,2]
[426294972,1782251449000,-613.89782072,0.00026677,2]
[426294975,1782251449000,-544.0,0.00026703,7]
[426294983,1782251449000,-15239.35068509,0.00026889,2]
[426294979,1782251449000,-11680.6959346,0.00026766,2]
[426294980,1782251449000,-42799.4084439,0.00026816,2]
[426294992,1782251449000,-500.0,0.00027,7]
[426294988,1782251449000,-500.0,0.00027,7]
[426294986,1782251449000,-500.0,0.00027,7]
[426294991,1782251449000,-500.0,0.00027,7]
[426295002,1782251449000,-500.0,0.00027318,2]
[426295001,1782251449000,-5771.53512819,0.00027278,2]
[426295000,1782251449000,-200.0,0.00027255,2]
[426294990,1782251449000,-500.0,0.00027,7]
[426294998,1782251449000,-650.0,0.00027183,10]